[Event "41st Jacques-Lemans-Open 2022"]
[Site "St. Veit/Glan"]
[Date "2022.07.10"]
[Round "2.31"]
[White "Schwab, Lukas"]
[Black "Holzbauer, Johannes"]
[Result "1-0"]
[ECO "B16"]
[WhiteElo "2166"]
[BlackElo "1917"]
[Annotator "RC"]
[PlyCount "93"]
[EventDate "2022.07.09"]
[EventType "swiss"]
[EventCountry "AUT"]
[SourceTitle "playchess.com"]
[Source "ChessBase"]
[SourceQuality "1"]
[TimeControl "40/5400+30:1800+30"]

1. e4 {[%emt 0:00:04]} c6 {[%emt 0:00:06]} 2. d4 {[%emt 0:00:08]} d5 {[%emt 0:00:06]} 3. Nc3 {[%emt 0:00:11]} dxe4 {[%emt 0:00:09]} 4. Nxe4 {[%emt 0:00:42]} Nf6 {[%emt 0:00:09]} 5. Nxf6+ {[%emt 0:00:00]} gxf6 {[%emt 0:00:08]} 6. c3 {[%emt 0:01:41]} Qd5 {[%emt 0:05:45]} 7. Ne2 {[%emt 0:07:02]} h5 {[%emt 0:07:10]} 8. Nf4 {[%emt 0:02:04]} Qe4+ {[%emt 0:05:04]} 9. Be3 {[%emt 0:02:32]} Qf5 {[%emt 0:10:19]} 10. Bd3 {[%emt 0:18:35]} Qa5 {[%emt 0:04:14]} 11. b4 {[%emt 0:13:30]} Qc7 {[%emt 0:02:58]} 12. Nxh5 {[%emt 0:02:36]} Bh6 {[%emt 0:00:51]} 13. Bxh6 {[%emt 0:02:49]} Rxh6 {[%emt 0:02:41]} 14. Ng3 {[%emt 0:00:12]} a5 {[%emt 0:05:40]} 15. a3 {[%emt 0:03:13]} Be6 {[%emt 0:02:38]} 16. h4 {[%emt 0:12:01]} Nd7 {[%emt 0:07:40]} 17. Qc1 {[%emt 0:03:30]} Rh8 {[%emt 0:00:30]} 18. Nf5 {[%emt 0:08:09]} Bxf5 {[%emt 0:02:23]} 19. Bxf5 {[%emt 0:00:02]} e6 {[%emt 0:00:31]} 20. Be4 {[%emt 0:01:42]} O-O-O {[%emt 0:03:37]} 21. bxa5 {[%emt 0:01:23]} Qxa5 {[%emt 0:00:37]} 22. Qb2 {[%emt 0:00:28]} Nb6 {[%emt 0:12:38]} 23. Qb4 {[%emt 0:01:18]} Qxb4 {[%emt 0:03:18]} 24. axb4 {[%emt 0:00:06]} Kc7 {[%emt 0:00:37]} 25. g3 {[%emt 0:02:16]} f5 {[%emt 0:03:50]} 26. Bf3 {[%emt 0:00:17]} e5 {[%emt 0:01:52]} 27. dxe5 {[%emt 0:01:57]} Rd3 {[%emt 0:00:22]} 28. Be2 {[%emt 0:02:07]} Rxc3 {[%emt 0:00:45]} 29. Kd2 {[%emt 0:00:24]} Rb3 {[%emt 0:01:40]} 30. Rhb1 {[%emt 0:02:00]} Rxb1 {[%emt 0:00:40]} 31. Rxb1 {[%emt 0:00:00]} f4 {[%emt 0:00:53]} 32. h5 {[%emt 0:02:12]} f3 {[%emt 0:02:20]} 33. Bxf3 {[%emt 0:00:18]} Nc4+ {[%emt 0:00:12]} 34. Kc3 {[%emt 0:00:15]} Nxe5 {[%emt 0:00:40]} 35. Be2 {[%emt 0:00:23]} f5 {[%emt 0:01:42]} 36. Rh1 {[%emt 0:04:41]} Nf7 {[%emt 0:00:22]} 37. Bd3 {[%emt 0:00:51]} Nh6 {[%emt 0:00:33]} 38. Rh4 {[%emt 0:00:47]} Kd6 {[%emt 0:00:37]} 39. Rd4+ {[%emt 0:01:32]} Ke6 {[%emt 0:01:17]} 40. f3 {[%emt 0:01:16]} b6 {[%emt 0:07:44]} 41. Bc4+ {[%emt 0:34:30]} Ke7 {[%emt 0:32:40]} 42. Rd2 {[%emt 0:00:00]} Rc8 {[%emt 0:00:00]} 43. Re2+ {[%emt 0:00:00]} Kf6 {[%emt 0:00:00]} 44. Re6+ {[%emt 0:00:00]} Kg5 {[%emt 0:00:00]} 45. f4+ {[%emt 0:00:00]} Kxh5 {[%emt 0:00:00]} 46. Be2+ {[%emt 0:00:00]} Ng4 {[%emt 0:00:00]} 47. Rf6 {[%emt 0:00:00]} 1-0

[Event "41st Jacques-Lemans-Open 2022"]
[Site "St. Veit/Glan"]
[Date "2022.07.10"]
[Round "2.32"]
[White "Nitsche, Nikolai"]
[Black "Feinig, Mario"]
[Result "0-1"]
[ECO "A96"]
[WhiteElo "1764"]
[BlackElo "2141"]
[Annotator "RC"]
[PlyCount "112"]
[EventDate "2022.07.09"]
[EventType "swiss"]
[EventCountry "AUT"]
[SourceTitle "playchess.com"]
[Source "ChessBase"]
[SourceQuality "1"]
[TimeControl "40/5400+30:1800+30"]

1. g3 {[%emt 0:00:04]} f5 {[%emt 0:00:16]} 2. Bg2 {[%emt 0:00:04]} Nf6 {[%emt 0:00:14]} 3. c4 {[%emt 0:00:11]} d6 {[%emt 0:00:31]} 4. d4 {[%emt 0:00:21]} e6 {[%emt 0:00:11]} 5. Nf3 {[%emt 0:00:05]} Be7 {[%emt 0:00:05]} 6. O-O {[%emt 0:00:07]} O-O {[%emt 0:00:05]} 7. Nc3 {[%emt 0:00:05]} Ne4 {[%emt 0:01:01]} 8. Qc2 {[%emt 0:01:25]} Nxc3 {[%emt 0:00:53]} 9. Qxc3 {[%emt 0:00:35]} a5 {[%emt 0:00:26]} 10. b3 {[%emt 0:00:56]} Nc6 {[%emt 0:00:29]} 11. Bb2 {[%emt 0:00:26]} Bf6 {[%emt 0:00:08]} 12. a3 {[%emt 0:00:50]} e5 {[%emt 0:01:13]} 13. Rad1 {[%emt 0:07:53]} e4 {[%emt 0:09:31]} 14. Ne1 {[%emt 0:05:03]} Nxd4 {[%emt 0:00:09]} 15. Rxd4 {[%emt 0:00:04]} c5 {[%emt 0:00:05]} 16. Nc2 {[%emt 0:00:05]} cxd4 {[%emt 0:11:48]} 17. Nxd4 {[%emt 0:00:44]} Qe7 {[%emt 0:12:22]} 18. Rd1 {[%emt 0:04:20]} Bd7 {[%emt 0:03:16]} 19. e3 {[%emt 0:01:24]} Be5 {[%emt 0:00:35]} 20. a4 {[%emt 0:00:36]} b6 {[%emt 0:05:19]} 21. Qd2 {[%emt 0:00:35]} Rad8 {[%emt 0:00:46]} 22. Ba3 {[%emt 0:04:36]} Qf6 {[%emt 0:03:37]} 23. Bf1 {[%emt 0:02:26]} Be8 {[%emt 0:05:04]} 24. Nb5 {[%emt 0:05:43]} Bh5 {[%emt 0:22:54]} 25. Qd5+ {[%emt 0:02:44]} Qf7 {[%emt 0:04:38]} 26. Rd2 {[%emt 0:01:58]} Qxd5 {[%emt 0:01:06]} 27. cxd5 {[%emt 0:00:15]} Rf7 {[%emt 0:02:05]} 28. Bb2 {[%emt 0:09:50]} Rfd7 {[%emt 0:02:00]} 29. Bd4 {[%emt 0:04:44]} Rb7 {[%emt 0:00:57]} 30. Rc2 {[%emt 0:00:49]} Be8 {[%emt 0:01:13]} 31. Bc4 {[%emt 0:03:46]} Bxb5 {[%emt 0:01:15]} 32. Bxb5 {[%emt 0:01:04]} Bxd4 {[%emt 0:00:09]} 33. exd4 {[%emt 0:00:03]} Kf7 {[%emt 0:00:57]} 34. Rc6 {[%emt 0:02:22]} Ke7 {[%emt 0:00:12]} 35. Ba6 {[%emt 0:00:55]} Rbb8 {[%emt 0:00:02]} 36. Kf1 {[%emt 0:00:32]} Rd7 {[%emt 0:02:23]} 37. Bc8 {[%emt 0:01:17]} Ra7 {[%emt 0:03:41]} 38. Bxf5 {[%emt 0:07:05]} b5 {[%emt 0:00:06]} 39. axb5 {[%emt 0:00:05]} Rxb5 {[%emt 0:00:05]} 40. Rc3 {[%emt 0:00:21]} Rab7 {[%emt 0:02:53]} 41. Bxe4 {[%emt 0:31:33]} Rxb3 {[%emt 0:32:31]} 42. Rc1 {[%emt 0:01:04]} g6 {[%emt 0:00:00]} 43. Ra1 {[%emt 0:00:00]} Ra7 {[%emt 0:00:00]} 44. h4 {[%emt 0:00:00]} a4 {[%emt 0:00:00]} 45. Ke2 {[%emt 0:00:00]} a3 {[%emt 0:00:00]} 46. f3 {[%emt 0:00:00]} Rc7 {[%emt 0:00:00]} 47. Kf2 {[%emt 0:00:00]} Rcc3 {[%emt 0:00:00]} 48. Kg2 {[%emt 0:00:00]} Rb2+ {[%emt 0:00:00]} 49. Kh3 {[%emt 0:00:00]} a2 {[%emt 0:00:00]} 50. Kg4 {[%emt 0:00:00]} Kf6 {[%emt 0:00:00]} 51. h5 {[%emt 0:00:00]} Rc4 {[%emt 0:00:00]} 52. hxg6 {[%emt 0:00:00]} hxg6 {[%emt 0:00:00]} 53. Kh4 {[%emt 0:00:00]} Rxd4 {[%emt 0:00:00]} 54. Kg4 {[%emt 0:00:00]} g5 {[%emt 0:00:00]} 55. Kh3 {[%emt 0:00:00]} Rbd2 {[%emt 0:00:00]} 56. Kg4 {[%emt 0:00:00]} Rh2 0-1

[Event "41st Jacques-Lemans-Open 2022"]
[Site "St. Veit/Glan"]
[Date "2022.07.10"]
[Round "2.33"]
[White "Wegerer, Fred"]
[Black "Burbach, Brunel Baron"]
[Result "0-1"]
[ECO "A20"]
[WhiteElo "2137"]
[BlackElo "1820"]
[Annotator "RC"]
[PlyCount "102"]
[EventDate "2022.07.09"]
[EventType "swiss"]
[EventCountry "AUT"]
[SourceTitle "playchess.com"]
[Source "ChessBase"]
[SourceQuality "1"]
[TimeControl "40/5400+30:1800+30"]

1. c4 {[%emt 0:00:01]} e5 {[%emt 0:01:34]} 2. e3 {[%emt 0:00:18]} Nc6 {[%emt 0:02:17]} 3. Nc3 {[%emt 0:00:54]} f5 {[%emt 0:01:17]} 4. a3 {[%emt 0:19:39]} a5 {[%emt 0:08:39]} 5. d4 {[%emt 0:00:26]} e4 {[%emt 0:04:08]} 6. Nge2 {[%emt 0:03:59]} Nf6 {[%emt 0:04:02]} 7. Nf4 {[%emt 0:00:26]} d6 {[%emt 0:07:50]} 8. h4 {[%emt 0:04:10]} g6 {[%emt 0:06:02]} 9. Be2 {[%emt 0:05:02]} Bg7 {[%emt 0:02:38]} 10. h5 {[%emt 0:03:08]} g5 {[%emt 0:05:15]} 11. h6 {[%emt 0:00:11]} gxf4 {[%emt 0:00:30]} 12. hxg7 {[%emt 0:00:04]} Rg8 {[%emt 0:00:05]} 13. Bh5+ {[%emt 0:03:12]} Ke7 {[%emt 0:00:44]} 14. exf4 {[%emt 0:03:33]} Rxg7 {[%emt 0:00:54]} 15. d5 {[%emt 0:00:24]} Nb8 {[%emt 0:02:03]} 16. g3 {[%emt 0:00:15]} Na6 {[%emt 0:06:19]} 17. Be2 {[%emt 0:01:15]} c5 {[%emt 0:07:21]} 18. Be3 {[%emt 0:09:01]} Bd7 {[%emt 0:13:17]} 19. Qc2 {[%emt 0:00:32]} Qg8 {[%emt 0:02:26]} 20. O-O-O {[%emt 0:00:44]} b6 {[%emt 0:09:40]} 21. Rh6 {[%emt 0:04:36]} Rg6 {[%emt 0:01:07]} 22. Rh2 {[%emt 0:00:24]} Qg7 {[%emt 0:03:35]} 23. Rdh1 {[%emt 0:00:08]} h6 {[%emt 0:00:08]} 24. Bd2 {[%emt 0:00:35]} Nc7 {[%emt 0:01:39]} 25. Bh5 {[%emt 0:18:45]} Nxh5 {[%emt 0:01:06]} 26. Rxh5 {[%emt 0:00:02]} Ne8 {[%emt 0:04:29]} 27. Nd1 {[%emt 0:00:35]} Nf6 {[%emt 0:00:14]} 28. Bc3 {[%emt 0:00:09]} Qf8 {[%emt 0:00:08]} 29. R5h4 {[%emt 0:02:20]} b5 {[%emt 0:03:00]} 30. cxb5 {[%emt 0:04:20]} Nxd5 {[%emt 0:01:15]} 31. Qd2 {[%emt 0:03:51]} Nb6 {[%emt 0:01:17]} 32. Ne3 {[%emt 0:00:49]} Bxb5 {[%emt 0:00:39]} 33. Nd5+ {[%emt 0:00:24]} Nxd5 {[%emt 0:00:05]} 34. Qxd5 {[%emt 0:00:04]} Rb8 {[%emt 0:00:30]} 35. Rh5 {[%emt 0:07:13]} Bd7 {[%emt 0:00:26]} 36. Bxa5 {[%emt 0:02:14]} Qf6 {[%emt 0:01:10]} 37. Bc3 {[%emt 0:00:13]} Qe6 {[%emt 0:00:24]} 38. Qd1 {[%emt 0:02:54]} Rf8 {[%emt 0:00:35]} 39. Re1 {[%emt 0:00:34]} d5 {[%emt 0:00:14]} 40. Be5 {[%emt 0:00:09]} d4 {[%emt 0:00:24]} 41. Qc2 {[%emt 0:32:45]} Rc8 {[%emt 0:30:55]} 42. Kb1 {[%emt 0:00:40]} Bb5 {[%emt 0:00:32]} 43. Ka1 {[%emt 0:00:00]} Be8 {[%emt 0:00:00]} 44. Kb1 {[%emt 0:00:00]} Bf7 {[%emt 0:00:00]} 45. Kc1 {[%emt 0:00:00]} Rgg8 {[%emt 0:00:00]} 46. Rh3 {[%emt 0:00:00]} Rgd8 {[%emt 0:00:00]} 47. Kd2 {[%emt 0:00:00]} c4 {[%emt 0:00:00]} 48. Qa4 {[%emt 0:00:00]} c3+ {[%emt 0:00:00]} 49. Kd1 {[%emt 0:00:05]} Qb3+ {[%emt 0:00:00]} 50. Qxb3 {[%emt 0:00:04]} Bxb3+ {[%emt 0:00:00]} 51. Kc1 {[%emt 0:01:58]} d3 {[%emt 0:00:00]} 0-1

[Event "41st Jacques-Lemans-Open 2022"]
[Site "St. Veit/Glan"]
[Date "2022.07.10"]
[Round "2.34"]
[White "Bethke, Robert"]
[Black "Bajorski, Marius"]
[Result "1/2-1/2"]
[ECO "D37"]
[WhiteElo "2070"]
[BlackElo "1870"]
[Annotator "NA RC"]
[PlyCount "56"]
[EventDate "2022.07.09"]
[EventType "swiss"]
[EventCountry "AUT"]
[SourceTitle "playchess.com"]
[Source "ChessBase"]
[SourceQuality "1"]
[TimeControl "40/5400+30:1800+30"]

1. d4 {[%emt 0:00:06]} d5 {[%emt 0:00:05]} 2. c4 {[%emt 0:00:04]} e6 {[%emt 0:00:04]} 3. Nc3 {[%emt 0:00:07]} Nf6 {[%emt 0:00:04]} 4. Nf3 {[%emt 0:00:06]} Be7 {[%emt 0:00:39]} 5. e3 {[%emt 0:00:09]} O-O {[%emt 0:00:37]} 6. Be2 {[%emt 0:01:22]} dxc4 {[%emt 0:00:46]} 7. O-O {[%emt 0:00:20]} c5 {[%emt 0:01:09]} 8. Bxc4 {[%emt 0:00:23]} cxd4 {[%emt 0:05:02]} 9. exd4 {[%emt 0:00:12]} Nc6 {[%emt 0:02:30]} 10. a3 {[%emt 0:02:08]} b6 {[%emt 0:01:48]} 11. b4 {[%emt 0:03:00]} Bb7 {[%emt 0:01:14]} 12. Bb2 {[%emt 0:00:05]} Rc8 {[%emt 0:01:32]} 13. Qd3 {[%emt 0:01:11]} Qc7 {[%emt 0:04:00]} 14. Bb3 {[%emt 0:01:43]} Rfd8 {[%emt 0:04:50]} 15. Rfe1 {[%emt 0:01:42]} Bf8 {[%emt 0:05:55]} 16. Rad1 {[%emt 0:01:16]} Ne7 {[%emt 0:01:54]} 17. Ng5 {[%emt 0:08:02]} Ned5 {[%emt 0:02:54]} 18. Nce4 {[%emt 0:03:05]} Nxe4 {[%emt 0:04:21]} 19. Qxe4 {[%emt 0:03:54]} g6 {[%emt 0:01:53]} 20. Qh4 {[%emt 0:10:12]} h6 {[%emt 0:01:35]} 21. Ne4 {[%emt 0:00:32]} Bg7 {[%emt 0:05:22]} 22. Bc1 {[%emt 0:03:50]} Qe7 {[%emt 0:02:51]} 23. Qg3 {[%emt 0:07:32]} Nf6 {[%emt 0:06:41]} 24. Nxf6+ {[%emt 0:01:43]} Qxf6 {[%emt 0:01:41]} 25. Bb2 {[%emt 0:01:08]} Bd5 {[%emt 0:01:37]} 26. h3 {[%emt 0:04:11]} Qf5 {[%emt 0:05:08]} 27. Re2 {[%emt 0:01:54]} Bxb3 {[%emt 0:01:23]} 28. Qxb3 {[%emt 0:00:03]} Qd5 {[%emt 0:00:15]} 1/2-1/2

[Event "41st Jacques-Lemans-Open 2022"]
[Site "St. Veit/Glan"]
[Date "2022.07.10"]
[Round "2.35"]
[White "Kempe, Caius Emilian"]
[Black "Reisenhofer, Maximilian"]
[Result "1-0"]
[ECO "D86"]
[WhiteElo "1877"]
[BlackElo "2051"]
[Annotator "RC"]
[PlyCount "142"]
[EventDate "2022.07.09"]
[EventType "swiss"]
[EventCountry "AUT"]
[SourceTitle "playchess.com"]
[Source "ChessBase"]
[SourceQuality "1"]
[TimeControl "40/5400+30:1800+30"]

1. d4 {[%emt 0:00:03]} Nf6 {[%emt 0:00:09]} 2. c4 {[%emt 0:00:06]} g6 {[%emt 0:00:42]} 3. Nc3 {[%emt 0:02:08]} d5 {[%emt 0:00:06]} 4. cxd5 {[%emt 0:00:08]} Nxd5 {[%emt 0:00:05]} 5. e4 {[%emt 0:00:08]} Nxc3 {[%emt 0:00:05]} 6. bxc3 {[%emt 0:00:03]} Bg7 {[%emt 0:00:07]} 7. Bc4 {[%emt 0:00:18]} c5 {[%emt 0:00:04]} 8. Ne2 {[%emt 0:00:24]} O-O {[%emt 0:00:06]} 9. O-O {[%emt 0:00:13]} Nc6 {[%emt 0:00:04]} 10. Be3 {[%emt 0:00:12]} Bg4 {[%emt 0:00:05]} 11. f3 {[%emt 0:00:14]} Bd7 {[%emt 0:00:05]} 12. Rb1 {[%emt 0:05:41]} Qc7 {[%emt 0:04:56]} 13. Nf4 {[%emt 0:15:59]} cxd4 {[%emt 0:06:59]} 14. Nd5 {[%emt 0:00:46]} Qd8 {[%emt 0:07:21]} 15. cxd4 {[%emt 0:01:17]} e6 {[%emt 0:05:49]} 16. Nc3 {[%emt 0:04:45]} Rc8 {[%emt 0:06:19]} 17. Qd3 {[%emt 0:00:43]} Na5 {[%emt 0:01:04]} 18. Bb5 {[%emt 0:05:44]} Bxb5 {[%emt 0:01:07]} 19. Nxb5 {[%emt 0:00:23]} a6 {[%emt 0:01:57]} 20. Na7 {[%emt 0:14:43]} Rc4 {[%emt 0:11:15]} 21. Rfd1 {[%emt 0:05:14]} b5 {[%emt 0:01:31]} 22. d5 {[%emt 0:01:08]} Rc3 {[%emt 0:09:02]} 23. Qe2 {[%emt 0:00:17]} exd5 {[%emt 0:02:08]} 24. Rxd5 {[%emt 0:00:23]} Qc7 {[%emt 0:01:37]} 25. a4 {[%emt 0:05:18]} Nc4 {[%emt 0:07:46]} 26. Bf2 {[%emt 0:11:06]} Na3 {[%emt 0:01:29]} 27. Rbd1 {[%emt 0:00:53]} bxa4 {[%emt 0:07:06]} 28. Qxa6 {[%emt 0:01:08]} Rc1 {[%emt 0:05:22]} 29. Qxa4 {[%emt 0:02:28]} Rxd1+ {[%emt 0:03:47]} 30. Rxd1 {[%emt 0:01:45]} Qc2 {[%emt 0:00:20]} 31. Qxc2 {[%emt 0:13:03]} Nxc2 {[%emt 0:00:08]} 32. Bc5 {[%emt 0:00:05]} Ra8 {[%emt 0:01:36]} 33. g4 {[%emt 0:01:01]} Bd4+ {[%emt 0:01:55]} 34. Rxd4 {[%emt 0:01:46]} Nxd4 {[%emt 0:00:06]} 35. Bxd4 {[%emt 0:00:08]} Rd8 {[%emt 0:01:43]} 36. Bf2 {[%emt 0:00:11]} f6 {[%emt 0:05:50]} 37. Nc6 {[%emt 0:00:39]} Rd1+ {[%emt 0:00:21]} 38. Kg2 {[%emt 0:00:07]} Kf7 {[%emt 0:00:06]} 39. Nd4 {[%emt 0:01:03]} Ra1 {[%emt 0:00:53]} 40. h4 {[%emt 0:00:44]} Ra2 {[%emt 0:01:13]} 41. Kg3 {[%emt 0:30:41]} Ra5 {[%emt 0:31:11]} 42. Ne2 {[%emt 0:02:48]} h6 {[%emt 0:07:11]} 43. Be3 {[%emt 0:01:24]} h5 {[%emt 0:00:00]} 44. gxh5 {[%emt 0:00:00]} Rxh5 {[%emt 0:00:00]} 45. Kg4 {[%emt 0:00:00]} f5+ {[%emt 0:00:00]} 46. Kg3 {[%emt 0:00:00]} fxe4 {[%emt 0:00:00]} 47. fxe4 {[%emt 0:00:00]} Ra5 {[%emt 0:00:00]} 48. Bg5 {[%emt 0:00:00]} Ra4 {[%emt 0:00:00]} 49. Kf4 {[%emt 0:00:00]} Ke6 {[%emt 0:00:00]} 50. Ng3 {[%emt 0:00:00]} Rb4 {[%emt 0:00:00]} 51. Kg4 {[%emt 0:00:00]} Ra4 {[%emt 0:00:00]} 52. Bf4 {[%emt 0:00:00]} Kf6 {[%emt 0:00:00]} 53. Be3 {[%emt 0:00:00]} Ra5 {[%emt 0:00:00]} 54. Ne2 {[%emt 0:00:00]} Ke5 {[%emt 0:00:00]} 55. Ng3 {[%emt 0:00:00]} Ke6 {[%emt 0:00:00]} 56. Kf4 {[%emt 0:00:00]} Rb5 {[%emt 0:00:00]} 57. Bd4 {[%emt 0:00:00]} Rb4 {[%emt 0:00:02]} 58. Bg7 {[%emt 0:00:00]} Rb7 {[%emt 0:01:21]} 59. Bc3 {[%emt 0:00:00]} Rf7+ {[%emt 0:01:34]} 60. Kg4 {[%emt 0:00:00]} Rc7 {[%emt 0:00:36]} 61. Ne2 {[%emt 0:00:00]} Rc5 {[%emt 0:00:51]} 62. Nf4+ {[%emt 0:02:24]} Kf7 {[%emt 0:00:10]} 63. Bh8 {[%emt 0:01:26]} Rc8 {[%emt 0:00:31]} 64. Bb2 {[%emt 0:00:06]} Rc2 {[%emt 0:00:53]} 65. Ba3 {[%emt 0:00:06]} Ra2 {[%emt 0:00:26]} 66. Bd6 {[%emt 0:00:05]} Ra1 {[%emt 0:00:50]} 67. e5 {[%emt 0:03:14]} Rg1+ {[%emt 0:01:16]} 68. Kf3 {[%emt 0:00:06]} Rd1 {[%emt 0:03:15]} 69. Bc5 {[%emt 0:03:31]} Rc1 {[%emt 0:00:37]} 70. e6+ {[%emt 0:00:26]} Ke8 {[%emt 0:00:05]} 71. Be3 {[%emt 0:00:43]} Rc6 {[%emt 0:00:14]} 1-0

[Event "41st Jacques-Lemans-Open 2022"]
[Site "St. Veit/Glan"]
[Date "2022.07.10"]
[Round "2.36"]
[White "Oberberger, Guenther"]
[Black "Hinteregger, Arthur"]
[Result "1/2-1/2"]
[ECO "B52"]
[WhiteElo "1769"]
[BlackElo "1993"]
[Annotator "NA RC"]
[PlyCount "47"]
[EventDate "2022.07.09"]
[EventType "swiss"]
[EventCountry "AUT"]
[SourceTitle "playchess.com"]
[Source "ChessBase"]
[SourceQuality "1"]
[TimeControl "40/5400+30:1800+30"]

1. e4 {[%emt 0:00:09]} c5 {[%emt 0:00:08]} 2. Nf3 {[%emt 0:00:13]} d6 {[%emt 0:00:17]} 3. Bb5+ {[%emt 0:00:20]} Bd7 {[%emt 0:00:56]} 4. Bxd7+ {[%emt 0:00:17]} Qxd7 {[%emt 0:00:10]} 5. O-O {[%emt 0:00:11]} Nf6 {[%emt 0:00:25]} 6. Re1 {[%emt 0:00:09]} Nc6 {[%emt 0:00:19]} 7. c3 {[%emt 0:00:13]} e6 {[%emt 0:03:47]} 8. d4 {[%emt 0:00:19]} cxd4 {[%emt 0:00:22]} 9. cxd4 {[%emt 0:00:10]} Be7 {[%emt 0:06:35]} 10. Nc3 {[%emt 0:01:05]} O-O {[%emt 0:00:36]} 11. Bg5 {[%emt 0:08:19]} h6 {[%emt 0:01:40]} 12. Be3 {[%emt 0:05:05]} d5 {[%emt 0:11:03]} 13. e5 {[%emt 0:04:51]} Ne8 {[%emt 0:00:12]} 14. Nd2 {[%emt 0:05:33]} f5 {[%emt 0:06:11]} 15. f4 {[%emt 0:07:55]} Nc7 {[%emt 0:03:05]} 16. Qh5 {[%emt 0:03:07]} Qe8 {[%emt 0:13:53]} 17. Qxe8 {[%emt 0:05:12]} Rfxe8 {[%emt 0:00:16]} 18. a3 {[%emt 0:00:08]} Rac8 {[%emt 0:00:47]} 19. Rac1 {[%emt 0:00:46]} a6 {[%emt 0:01:06]} 20. Nb3 {[%emt 0:02:24]} Kf7 {[%emt 0:03:32]} 21. h3 {[%emt 0:06:08]} Rg8 {[%emt 0:04:23]} 22. Kh2 {[%emt 0:04:56]} g5 {[%emt 0:00:19]} 23. g3 {[%emt 0:00:24]} gxf4 {[%emt 0:11:44]} 24. gxf4 1/2-1/2

[Event "41st Jacques-Lemans-Open 2022"]
[Site "St. Veit/Glan"]
[Date "2022.07.10"]
[Round "3.1"]
[White "Vojinov, Danijel"]
[Black "Bosiocic, Marin"]
[Result "0-1"]
[ECO "A00"]
[WhiteElo "2201"]
[BlackElo "2549"]
[Annotator "TA"]
[PlyCount "76"]
[EventDate "2022.07.09"]
[EventType "swiss"]
[EventCountry "AUT"]
[SourceTitle "playchess.com"]
[Source "ChessBase"]
[SourceQuality "1"]
[TimeControl "40/5400+30:1800+30"]

{[%evp 9,76,-16,-14,-18,-25,-22,-24,-19,0,0,6,20,48,42,33,24,66,45,41,34,33,16,6,0,39,30,29,-68,-5,-32,0,0,0,0,0,0,0,0,0,-12,2,-170,-178,-408,-421,-419,-208,-209,-216,-205,-224,-360,-346,-415,-373,-488,-481,-1192,-536,-2574,-886,-783,-762,-29986,-29986,-29994,-29995,-29998,-29999]} 1. b4 {[%emt 0:00:03]} e5 {[%emt 0:00:50]} 2. Bb2 {[%emt 0:00:07]} Bxb4 {[%emt 0:00:36]} 3. Bxe5 {[%emt 0:00:19]} Nf6 {[%emt 0:00:18]} 4. c3 {[%emt 0:00:10]} Be7 {[%emt 0:00:09]} 5. d4 {[%emt 0:00:22]} d5 {[%emt 0:00:42]} 6. Bxf6 {[%emt 0:01:12] A00: Irregular Openings.} Bxf6 {[%emt 0:00:16]} 7. e3 {[%emt 0:00:11]} c5 {[%emt 0:00:45]} 8. Bd3 {[%emt 0:02:30] [#] Black has an edge.} Qb6 $146 {[%emt 0:05:25]} ({Predecessor:} 8... O-O 9. Ne2 Nc6 10. h3 c4 11. Bc2 b5 12. a3 Bg5 13. Nd2 f5 14. O-O Qd6 {½-½ (47) Nicklich,W (2242)-Zakharov,O (2247) ICCF email 2011}) 9. Nd2 {[%emt 0:04:27]} Nc6 {[%emt 0:03:39]} 10. Ne2 {[%emt 0:02:18]} Bg4 {[%emt 0:02:37]} 11. Rb1 {[%emt 0:02:59]} Qc7 {[%emt 0:00:42]} 12. h3 {[%emt 0:05:21]} Bh5 {[%emt 0:03:31]} 13. g4 {[%emt 0:14:16]} Bg6 {[%emt 0:00:48]} 14. Bxg6 {[%emt 0:00:12]} hxg6 {[%emt 0:00:11]} 15. Nf4 {[%emt 0:00:23]} Rd8 {[%emt 0:01:51][%cal Rc5d4]} 16. Qf3 {[%emt 0:10:04]} Ne7 {[%emt 0:03:57]} 17. O-O {[%emt 0:01:56]} b6 {[%emt 0:02:33]} 18. e4 {[%emt 0:02:34]} (18. a4 $11) 18... Bg5 {[%emt 0:06:04]} (18... cxd4 $15 19. cxd4 dxe4 20. Nxe4 (20. Qxe4 $2 Rxd4 21. Qa8+ Rd8 $19) 20... Bxd4) 19. e5 $11 {[%emt 0:07:27]} Bxf4 {[%emt 0:02:01]} (19... Rc8 $5 {[%cal Rc5d4]} 20. Qg3 Bxf4 21. Qxf4 Rxh3 $11) 20. Qxf4 {[%emt 0:00:15]} Rxh3 {[%emt 0:00:17]} 21. Nf3 $1 {[%emt 0:01:06]} f6 {[%emt 0:19:18] [#] Against Ng5. And now ...g5 would win.} 22. Kg2 {[%emt 0:09:04]} g5 {[%emt 0:01:50]} 23. Qe3 {[%emt 0:00:50]} Rh8 {[%emt 0:04:44] ...Kf7 is the strong threat.} 24. Rbe1 {[%emt 0:02:40]} Kf8 {[%emt 0:07:36] aiming for ...Ng6.} 25. exf6 $2 {[%emt 0:05:17] This move loses the game for White.} (25. Rh1 $1 $11 {and White is okay.} Rxh1 26. Rxh1) 25... gxf6 $19 {[%emt 0:00:23]} 26. Qe6 $2 {[%emt 0:02:51]} (26. Rh1 {was necessary.} Rxh1 27. Kxh1) 26... Rd6 {[%emt 0:03:39]} 27. Qe3 {[%emt 0:02:57]} Ng6 $40 {[%emt 0:00:55][%mdl 128] White is in trouble.} (27... Qd7 $142 {[%cal Rd7g4]} 28. Kg3 Ng6 29. dxc5 {[#]} Nf4 $1) 28. Rh1 {[%emt 0:01:00]} Rxh1 {[%emt 0:06:08] Dancing on a razor blade.} ({Weaker is} 28... Kg7 29. Rxh8 Kxh8 30. Kf1) 29. Kxh1 {[%emt 0:00:31]} Kg7 {[%emt 0:00:39]} 30. Kg2 {[%emt 0:07:36]} (30. Kg1 {is a better defense.}) 30... Qc8 {[%emt 0:03:40]} 31. Kg3 {[%emt 0:01:44]} Rd8 {[%emt 0:00:25] Prevents Qe8.} 32. dxc5 {[%emt 0:04:49]} bxc5 {[%emt 0:00:39]} 33. Rb1 {[%emt 0:03:40]} (33. Nd2 $142 Rh8 34. Nf1) 33... Rh8 {[%emt 0:01:27]} (33... Re8 $142 34. Qc1 Qc7+ 35. Kg2 Nf4+ 36. Kf1 Qc8 37. Qxf4 gxf4) 34. Rb5 {[%emt 0:02:17]} Nf4 {[%emt 0:01:34]} (34... Qc7+ $142 35. Kg2 Qd7) 35. Qe7+ {[%emt 0:01:55]} Kg6 {[%emt 0:00:34][%csl Gf4][%cal Rh8h3]} 36. Ng1 {[%emt 0:00:32] Prevents Rh3+.} Rh1 {[%emt 0:00:52] Black mates.} 37. Rb1 {[%emt 0:01:48]} Qh8 {[%emt 0:00:21]} 38. Kf3 {[%emt 0:00:19]} Rh3+ {[%emt 0:00:14] Weighted Error Value: White=0.71/Black=0.51} 0-1